bitfinex/quotes_BTCUSD_20241223
["timestamp","ask_amount","ask_price","bid_price","bid_amount"]
[1734990672779,0.00069917,94110.0,94109.0,1.16124105]
[1734990672982,0.00069917,94110.0,94109.0,1.17024105]
[1734990673191,0.00069917,94110.0,94109.0,1.27822737]
[1734990673607,0.00069917,94110.0,94109.0,1.28722737]
[1734990674454,0.00069917,94110.0,94109.0,1.26522737]
[1734990674823,0.00069917,94110.0,94109.0,1.07424105]
[1734990674949,0.00069917,94110.0,94109.0,1.04143347]
[1734990675406,0.00069917,94110.0,94109.0,1.03743347]
[1734990675623,0.00069917,94110.0,94109.0,1.04143347]
[1734990675842,0.00069917,94110.0,94109.0,1.03243347]
[1734990676088,0.00069917,94110.0,94109.0,1.13241979]
[1734990676261,0.00069917,94110.0,94109.0,1.14141979]
[1734990676438,0.00069917,94110.0,94109.0,1.24541979]
[1734990676838,0.00069917,94110.0,94109.0,1.26919915]
[1734990677039,0.00069917,94110.0,94109.0,1.27819915]
[1734990677508,0.00069917,94110.0,94109.0,1.17819915]
[1734990677680,0.00069917,94110.0,94109.0,1.25041979]
[1734990677899,0.00069917,94110.0,94109.0,1.25441979]
[1734990678426,0.00069917,94110.0,94109.0,1.14643347]
[1734990678625,0.00069917,94110.0,94109.0,1.18323322]
[1734990678834,0.00069917,94110.0,94109.0,1.06523322]
[1734990679057,0.00069917,94110.0,94109.0,1.02843347]
[1734990679260,0.00069917,94110.0,94109.0,1.03743347]
[1734990679459,0.00069917,94110.0,94109.0,1.03243347]
[1734990679863,0.00069917,94110.0,94109.0,1.04143347]
[1734990680304,0.00069917,94110.0,94109.0,1.05481184]
[1734990680632,0.00069917,94110.0,94109.0,1.05781184]
[1734990680840,0.00069917,94110.0,94109.0,1.04881184]
[1734990681040,0.00069917,94110.0,94109.0,1.05281184]
[1734990681243,0.00069917,94110.0,94109.0,1.03943347]
[1734990681800,0.00069917,94110.0,94109.0,1.03543347]
[1734990681987,0.00069917,94110.0,94109.0,1.04143347]
[1734990682187,0.00069917,94110.0,94109.0,1.07424208]
[1734990682406,0.00069917,94110.0,94109.0,1.1672284]
[1734990682876,0.00069917,94110.0,94109.0,1.1722284]
[1734990683057,0.00069917,94110.0,94109.0,1.03043347]
[1734990683285,0.00069917,94110.0,94109.0,1.03943347]
[1734990683681,0.00069917,94110.0,94109.0,1.03043347]
[1734990683877,0.00069917,94110.0,94109.0,1.03943347]
[1734990684300,0.00069917,94110.0,94109.0,1.03743347]
[1734990684500,0.00069917,94110.0,94109.0,1.07996947]
[1734990684926,0.00069917,94110.0,94109.0,1.08396947]
[1734990685223,0.00069917,94110.0,94109.0,0.92496947]
[1734990685446,0.00069917,94110.0,94109.0,0.71745047]
[1734990685647,0.00896909,94110.0,94109.0,0.03242896]
[1734990685859,0.02369917,94110.0,94109.0,0.002]
[1734990686036,0.0462,94109.0,94096.0,0.042549]
[1734990686275,0.283646,94097.0,94096.0,0.042549]
[1734990686465,0.023,94092.0,94082.0,0.0001708]
[1734990686840,0.023,94090.0,94082.0,0.0001708]
[1734990687222,0.023,94096.0,94082.0,0.0001708]
[1734990687423,0.023,94089.0,94082.0,0.0001708]
[1734990687628,0.023,94089.0,94082.0,0.2127508]
[1734990687967,0.023,94087.0,94082.0,0.2127508]
[1734990688148,0.023,94087.0,94082.0,0.2147508]
[1734990688469,0.023,94093.0,94082.0,0.2147508]
[1734990688701,0.023,94090.0,94082.0,0.0051708]
[1734990688895,0.001,94089.0,94082.0,0.0051708]
[1734990689024,0.001,94089.0,94082.0,0.0001708]
[1734990689228,0.001,94089.0,94082.0,0.0021708]
[1734990689438,0.0805,94088.0,94082.0,0.0001708]
[1734990689785,0.362178,94083.0,94082.0,0.0001708]
[1734990689913,0.212613,94068.0,94052.0,0.212646]
[1734990690122,0.023,94065.0,94052.0,0.212646]
[1734990690325,0.023,94063.0,94052.0,0.212646]
[1734990690749,0.023,94061.0,94049.0,0.02180316]
[1734990690956,0.023,94061.0,94052.0,0.255214]
[1734990691129,0.023,94059.0,94052.0,0.255214]
[1734990691615,0.023,94057.0,94049.0,0.02180316]
[1734990691741,0.0537028,94056.0,94049.0,0.02180316]
[1734990691946,0.02727964,94056.0,94047.0,0.212657]
[1734990692171,0.02727964,94056.0,94044.0,0.05340818]
[1734990692374,0.23991864,94056.0,94044.0,0.01083618]
[1734990693080,0.23991864,94056.0,94043.0,0.000171]
[1734990693280,0.31681864,94056.0,94043.0,0.000171]
[1734990694506,0.32081864,94056.0,94043.0,0.000171]
[1734990695289,0.32381864,94056.0,94043.0,0.000171]
[1734990695497,0.31981864,94056.0,94043.0,0.000171]
[1734990695696,0.31956156,94056.0,94043.0,0.212838]
[1734990695947,0.32356156,94056.0,94043.0,0.212838]
[1734990697119,0.00802256,94056.0,94054.0,0.212643]
[1734990697316,0.00802256,94056.0,94055.0,0.14776608]
[1734990697642,0.003,94056.0,94055.0,0.146703]
[1734990697819,0.0813,94076.0,94055.0,0.29776603]
[1734990698067,0.0493,94084.0,94075.0,0.212596]
[1734990698274,0.00385126,94083.0,94075.0,0.212596]
[1734990699020,0.002,94076.0,94075.0,0.212596]
[1734990699779,0.023,94075.0,94058.0,0.54049919]
[1734990699984,0.023,94069.0,94058.0,0.54049919]
[1734990700208,0.023,94069.0,94063.0,0.212621]
[1734990700373,0.023,94067.0,94063.0,0.212621]
[1734990700858,0.023,94073.0,94063.0,0.212621]
[1734990701060,0.023,94073.0,94059.0,0.212631]
[1734990701061,0.023,94071.0,94059.0,0.212631]
[1734990701237,0.0813,94070.0,94059.0,0.212631]
[1734990701394,0.023,94069.0,94063.0,0.001]
[1734990701596,0.0268574,94069.0,94063.0,0.001]
[1734990702559,0.0268574,94069.0,94064.0,0.212621]
[1734990702737,0.0298574,94069.0,94064.0,0.212621]
[1734990702951,0.026,94069.0,94064.0,0.212621]
[1734990703150,0.003,94069.0,94064.0,0.212621]
[1734990703336,0.003,94069.0,94064.0,0.425242]
[1734990703690,0.007,94069.0,94064.0,0.425242]
[1734990703893,0.003,94069.0,94064.0,0.425242]
[1734990704097,0.0813,94070.0,94069.0,0.212609]
[1734990704608,0.315078,94083.0,94069.0,0.425218]
[1734990704982,0.023,94081.0,94069.0,0.425218]
[1734990705428,0.023,94081.0,94073.0,0.212599]
[1734990705626,0.023,94079.0,94073.0,0.212599]
[1734990705857,0.023,94079.0,94077.0,0.212589]
[1734990706075,0.0835,94083.0,94077.0,0.212589]
[1734990706076,0.00384185,94078.0,94077.0,0.212589]
[1734990706276,0.00384185,94078.0,94071.0,0.22307854]
[1734990706390,0.005,94081.0,94078.0,0.212589]
[1734990706808,0.005,94081.0,94078.0,0.425178]
[1734990707009,0.004,94079.0,94078.0,0.212589]
[1734990707800,0.004,94079.0,94078.0,0.31657532]
[1734990708006,0.00052785,94084.0,94055.0,0.0001708]
[1734990708210,0.00052785,94084.0,94064.0,0.212621]
[1734990708324,0.0038722,94083.0,94064.0,0.212621]
[1734990708536,0.212591,94077.0,94064.0,0.212621]
[1734990708736,0.212582,94081.0,94065.0,0.212618]
[1734990708992,0.023,94076.0,94064.0,0.212621]
[1734990709245,0.21261,94069.0,94058.0,0.23376461]
[1734990709446,0.023,94068.0,94058.0,0.02113061]
[1734990709593,0.023,94066.0,94055.0,0.0001708]
[1734990709975,0.023,94064.0,94055.0,0.0001708]
[1734990710378,0.02685209,94064.0,94055.0,0.0001708]
[1734990710850,0.02685209,94064.0,94063.0,0.0011708]
[1734990711257,0.02685209,94064.0,94044.0,0.212666]
[1734990711258,0.0727605,94064.0,94044.0,0.212666]
[1734990711441,0.212644,94054.0,94044.0,0.212666]
[1734990711674,0.023,94053.0,94049.0,0.212654]
[1734990711880,0.02680883,94053.0,94049.0,0.212654]
[1734990712082,0.023,94060.0,94049.0,0.212654]
[1734990712485,0.023,94058.0,94049.0,0.212654]
[1734990712818,0.023,94060.0,94049.0,0.212654]
[1734990713061,0.023,94056.0,94049.0,0.212654]
[1734990713286,0.023,94054.0,94045.0,0.212664]
[1734990713539,0.025,94054.0,94045.0,0.21271677]
[1734990713742,0.023,94052.0,94045.0,0.21271677]
[1734990713944,0.0991,94052.0,94045.0,5.277e-05]
[1734990714095,0.023,94046.0,94045.0,5.277e-05]
[1734990714291,0.02680957,94046.0,94045.0,5.277e-05]
[1734990717123,0.02680957,94046.0,94045.0,0.00205277]
[1734990717538,0.13079589,94046.0,94045.0,0.00205277]
[1734990717745,0.28079589,94046.0,94045.0,0.00205277]
[1734990718024,0.46119589,94046.0,94045.0,0.00205277]
[1734990718217,0.46219589,94046.0,94045.0,0.00205277]
[1734990718429,0.46219589,94046.0,94045.0,5.277e-05]
[1734990719040,0.36219589,94046.0,94045.0,5.277e-05]
[1734990719247,0.21219589,94046.0,94045.0,5.277e-05]
[1734990719679,0.22019589,94046.0,94045.0,0.00105277]
[1734990719906,0.22419589,94046.0,94045.0,0.00105277]
[1734990720079,0.21519589,94046.0,94045.0,5.277e-05]
[1734990720278,0.22319589,94046.0,94045.0,0.00105277]
[1734990720923,0.21919589,94046.0,94045.0,0.00105277]
[1734990721334,0.22219589,94046.0,94045.0,0.00105277]
[1734990721543,0.21419589,94046.0,94045.0,5.277e-05]
[1734990721938,0.21819589,94046.0,94045.0,5.277e-05]
[1734990722528,0.21919589,94046.0,94045.0,5.277e-05]
[1734990722726,0.21119589,94046.0,94045.0,5.277e-05]
[1734990722951,0.21519589,94046.0,94045.0,5.277e-05]
[1734990723159,0.21919589,94046.0,94045.0,5.277e-05]
[1734990723355,0.36519589,94046.0,94045.0,5.277e-05]
[1734990723558,0.37962341,94046.0,94045.0,5.277e-05]
[1734990723766,0.58262341,94046.0,94045.0,5.277e-05]
[1734990723932,0.2,94044.0,94043.0,0.000171]
[1734990724350,0.2,94044.0,93981.0,0.54049919]
[1734990724351,0.212732,94015.0,94002.0,0.004259]
[1734990724556,0.461832,94015.0,94014.0,0.00022378]
[1734990724780,0.56950417,94015.0,94014.0,0.00022378]
[1734990726142,0.56950417,94015.0,94014.0,0.00122378]
[1734990726546,0.56950417,94015.0,94014.0,0.00022378]
[1734990726746,0.57350417,94015.0,94014.0,0.00022378]
[1734990727177,0.56950417,94015.0,94014.0,0.00022378]
[1734990727373,0.57250417,94015.0,94014.0,0.00022378]
[1734990727617,0.00668585,94015.0,94014.0,0.00022378]
[1734990727945,0.003,94015.0,94014.0,0.00022378]
[1734990728184,0.00665876,94015.0,94014.0,0.00022378]
[1734990728390,0.003,94015.0,94014.0,0.00122378]
[1734990728642,0.03423046,94015.0,94014.0,0.00122378]
[1734990728832,0.006,94015.0,94014.0,0.00022378]
[1734990729043,0.03765876,94015.0,94014.0,0.00022378]
[1734990729242,0.04065876,94015.0,94014.0,0.00022378]
[1734990729438,0.03465876,94015.0,94014.0,0.00022378]
[1734990729639,0.03065876,94015.0,94014.0,0.00022378]
[1734990729817,0.03265876,94015.0,94014.0,0.00022378]
[1734990730023,0.02965876,94015.0,94014.0,0.00022378]
[1734990730278,0.03265876,94015.0,94014.0,0.00022378]
[1734990730575,0.03065876,94015.0,94014.0,0.00022378]
[1734990730766,0.03265876,94015.0,94014.0,0.00022378]
[1734990730977,0.00965876,94015.0,94014.0,0.00022378]
[1734990731179,0.006,94015.0,94014.0,0.00022378]
[1734990731421,0.006,94015.0,94011.0,0.425478]
[1734990731634,0.002,94015.0,94011.0,5.279e-05]
[1734990731784,0.212701,94029.0,94011.0,0.21279279]
[1734990731987,0.01049146,94040.0,94011.0,5.279e-05]
[1734990731988,0.005,94015.0,94011.0,5.279e-05]
[1734990732188,0.002,94015.0,94011.0,5.279e-05]
[1734990732747,0.21271,94025.0,94012.0,0.212738]
[1734990732952,0.023,94024.0,94011.0,0.21279179]
[1734990733191,0.002,94015.0,94011.0,0.21279179]
[1734990733824,0.004,94015.0,94011.0,0.21279179]
[1734990734219,0.023,94014.0,94011.0,5.279e-05]
[1734990734339,0.023,94014.0,94011.0,0.21279279]
[1734990734696,0.00363991,94013.0,94011.0,0.21279279]
[1734990734936,0.023,94014.0,94011.0,0.42553279]
[1734990735144,0.212683,94037.0,94011.0,0.21279279]
[1734990735272,0.002,94015.0,94012.0,0.425476]
[1734990735725,0.023,94023.0,94017.0,0.212725]
[1734990736260,0.023,94021.0,94014.0,0.212734]
[1734990736728,0.023,94024.0,94014.0,0.212734]
[1734990736904,0.001,94015.0,94014.0,0.212734]
[1734990737281,0.001,94015.0,94011.0,5.279e-05]
[1734990737502,0.235738,94012.0,94011.0,5.279e-05]
[1734990737677,0.02657396,94012.0,94011.0,5.279e-05]
[1734990738074,0.13056028,94012.0,94011.0,5.279e-05]
[1734990739888,0.13056028,94012.0,94011.0,0.00105279]
[1734990740225,0.02657396,94012.0,94011.0,5.279e-05]
[1734990740449,0.07277756,94012.0,94011.0,5.279e-05]
[1734990740657,0.02757396,94012.0,94011.0,5.279e-05]
[1734990741908,0.02757396,94012.0,93963.0,0.01078562]
[1734990741909,0.212793,93988.0,93963.0,0.01078562]
[1734990742112,0.385793,93988.0,93987.0,0.00032902]
[1734990742319,0.54955849,93988.0,93987.0,0.00032902]
[1734990742543,0.212808,93981.0,93960.0,0.0001706]
[1734990742701,0.362836,93969.0,93960.0,0.0001706]
[1734990742910,0.49342468,93969.0,93960.0,0.0001706]
[1734990743110,0.49342468,93969.0,93968.0,6e-07]
[1734990743111,0.70489274,93969.0,93968.0,6e-07]
[1734990743345,0.70489274,93969.0,93960.0,0.0001706]
[1734990743346,0.385854,93961.0,93960.0,0.0001706]
[1734990743546,0.48984032,93961.0,93960.0,0.0001706]
[1734990743765,0.49336676,93961.0,93960.0,0.0001706]
[1734990744989,0.212908,93937.0,93931.0,2.69e-05]
[1734990745347,0.212913,93935.0,93931.0,0.00055527]
[1734990745486,0.212917,93933.0,93931.0,0.00055527]
[1734990745688,0.00351936,93932.0,93931.0,0.00055527]
[1734990745910,0.023,93932.0,93931.0,0.00055527]
[1734990746152,0.023,93932.0,93931.0,0.21347727]
[1734990746153,0.0035201,93932.0,93931.0,0.21347727]
[1734990746311,0.0035201,93932.0,93931.0,0.21447727]
[1734990746511,0.023,93945.0,93931.0,0.21347727]
[1734990746717,0.023,93943.0,93931.0,0.21347727]
[1734990746916,0.023,93941.0,93931.0,0.21647727]
[1734990747119,0.023,93943.0,93931.0,0.21647727]
[1734990747316,0.21638329,93942.0,93931.0,0.00355527]
[1734990747543,0.0327103,93941.0,93931.0,0.00355527]
[1734990747745,0.023,93941.0,93931.0,0.00355527]
[1734990747943,0.023,93941.0,93931.0,0.00455527]
[1734990748145,0.00348629,93940.0,93931.0,0.00155527]
[1734990748352,0.00348629,93940.0,93931.0,0.00355527]
[1734990748559,0.04417836,93939.0,93931.0,0.00355527]
[1734990748778,0.212906,93938.0,93931.0,0.00055527]
[1734990748997,0.00348629,93938.0,93931.0,0.00055527]
[1734990749929,0.00348629,93938.0,93932.0,0.212919]
[1734990750343,0.003,93939.0,93932.0,0.212919]
[1734990750552,0.003,93939.0,93933.0,0.14812532]
[1734990750754,0.003,93939.0,93933.0,0.15265073]
[1734990750993,0.001,93938.0,93937.0,0.212908]
[1734990751193,0.001,93938.0,93937.0,0.31689432]
[1734990751617,0.003,93939.0,93938.0,0.2257]
[1734990751819,0.003,93939.0,93938.0,0.87018551]
[1734990752275,0.01052776,93978.0,93938.0,0.32968632]
[1734990752478,0.212838,93968.0,93953.0,0.212872]
[1734990752736,0.212838,93968.0,93953.0,0.425744]
[1734990753001,0.212831,93971.0,93949.0,0.212879]
[1734990753249,0.212831,93971.0,93954.0,0.21287]
[1734990753475,0.04602363,93970.0,93950.0,0.10398632]
[1734990753735,0.008,93968.0,93959.0,0.212857]
[1734990753950,0.008,93968.0,93965.0,0.212844]
[1734990754199,0.008,93968.0,93963.0,0.212849]
[1734990754910,0.0034659,93967.0,93964.0,0.212847]
[1734990755132,0.002,93968.0,93963.0,0.212849]
[1734990755404,0.005,93971.0,93970.0,0.212833]
[1734990755647,0.005,93971.0,93970.0,0.31681932]
[1734990756114,0.212777,93995.0,93970.0,0.31681932]
[1734990756310,0.0425543,93994.0,93980.0,0.212809]
[1734990756512,0.023,93993.0,93980.0,0.212809]
[1734990756712,0.235781,93993.0,93980.0,0.212809]
[1734990756943,0.0034742,93992.0,93980.0,0.212809]
[1734990757243,0.023,93991.0,93980.0,0.212809]
[1734990757436,0.023,93989.0,93980.0,0.212809]
[1734990757797,0.0034733,93988.0,93980.0,0.212809]
[1734990758005,0.023,93987.0,93980.0,0.212809]
[1734990758205,0.023,93987.0,93970.0,0.004]
[1734990758430,0.023,93988.0,93970.0,0.004]
[1734990758690,0.023,93981.0,93971.0,0.212831]
[1734990758911,0.023,93981.0,93976.0,0.212819]
[1734990759161,0.023,93987.0,93976.0,0.212819]
[1734990759600,0.023,93985.0,93981.0,0.212807]
[1734990760015,0.023,93987.0,93981.0,0.212807]
[1734990760452,0.023,93987.0,93976.0,0.212819]
[1734990760900,0.023,93986.0,93980.0,0.212809]
[1734990761111,0.023,93985.0,93980.0,0.212809]
[1734990761321,0.023,93985.0,93974.0,0.212824]
[1734990761706,0.00347882,93984.0,93974.0,0.212824]
[1734990761879,0.00347882,93984.0,93968.0,0.212837]
[1734990761880,0.023,93983.0,93968.0,0.212837]
[1734990762086,0.023,93983.0,93964.0,0.00052837]
[1734990762087,0.04522758,93983.0,93973.0,0.212825]
[1734990762321,0.00348445,93982.0,93973.0,0.212825]
[1734990762509,0.023,93981.0,93973.0,0.212825]
[1734990762718,0.00347703,93980.0,93973.0,0.212825]
[1734990762927,0.04925016,93979.0,93973.0,0.212825]
[1734990763098,0.002,93984.0,93978.0,0.212815]
[1734990763301,0.002,93984.0,93983.0,0.212804]
[1734990763504,0.003,93984.0,93983.0,0.212804]
[1734990763935,0.002,93984.0,93983.0,0.212804]
[1734990764134,0.212762,94002.0,93985.0,0.212799]
[1734990764311,0.362747,94009.0,93985.0,0.212799]
[1734990764511,0.362747,94009.0,93985.0,0.425598]
[1734990764831,0.212755,94005.0,93985.0,0.425598]
[1734990765534,0.212755,94005.0,93985.0,0.427598]
[1734990766945,0.212765,94001.0,93985.0,0.214799]
[1734990767171,0.023,93991.0,93985.0,0.002]
[1734990767342,0.235797,93986.0,93985.0,0.002]
[1734990767560,0.023,93986.0,93985.0,0.002]
[1734990767765,0.023,93985.0,93971.0,0.212831]
[1734990767942,0.023,93974.0,93958.0,0.01051591]
[1734990768141,0.023,93972.0,93947.0,0.58909919]
[1734990768369,0.448658,93972.0,93956.0,0.212864]
[1734990768571,0.023,93972.0,93960.0,0.212855]
[1734990769164,0.023,93972.0,93970.0,0.212833]
[1734990769332,0.032,93972.0,93970.0,0.212833]
[1734990770151,0.032,93972.0,93965.0,0.212845]
[1734990770572,0.032,93972.0,93964.0,0.21437437]
[1734990770573,0.033,93972.0,93964.0,0.21437437]
[1734990770795,0.023,93970.0,93964.0,0.21437437]
[1734990771193,0.023,93970.0,93964.0,0.21337437]
[1734990771399,0.00399897,93969.0,93964.0,0.21337437]
[1734990771824,0.023,93970.0,93965.0,0.212845]
[1734990772025,0.023,93971.0,93964.0,0.00052837]
[1734990772197,0.02699897,93969.0,93964.0,0.00052837]
[1734990772563,0.00399897,93968.0,93964.0,0.00052837]
[1734990772835,0.023,93967.0,93964.0,0.00052837]
[1734990773275,0.023,93968.0,93964.0,0.00052837]
[1734990773478,0.235845,93965.0,93964.0,0.00052837]
[1734990773852,0.23981711,93965.0,93964.0,0.00052837]
[1734990774497,0.49380343,93965.0,93964.0,0.00052837]
[1734990775361,0.59380343,93965.0,93964.0,0.00052837]
[1734990775954,0.50080343,93965.0,93964.0,0.00152837]
[1734990776365,0.50080343,93965.0,93964.0,0.00052837]
[1734990776542,0.50980343,93965.0,93964.0,0.00152837]
[1734990776747,0.51480343,93965.0,93964.0,0.00152837]
[1734990777155,0.50980343,93965.0,93964.0,0.00152837]
[1734990777586,0.51480343,93965.0,93964.0,0.00093431]
[1734990778159,0.52557981,93965.0,93964.0,0.00093431]
[1734990778366,0.212861,93958.0,93944.0,0.21289]
[1734990778587,0.023,93955.0,93944.0,0.21301381]
[1734990778795,0.023,93953.0,93944.0,0.21301381]
[1734990779326,0.023,93951.0,93944.0,0.21301381]
[1734990779739,0.023,93953.0,93944.0,0.21301381]
[1734990779950,0.00396216,93952.0,93944.0,0.00012381]
[1734990780145,0.235877,93951.0,93944.0,0.00012381]
[1734990780395,0.212887,93947.0,93944.0,0.00012381]
[1734990780570,0.21289,93945.0,93944.0,0.00012381]
[1734990780777,0.023,93949.0,93944.0,0.00012381]
[1734990780969,0.02694125,93945.0,93944.0,0.00012381]
[1734990781172,0.023,93945.0,93944.0,0.00012381]
[1734990781408,0.02694125,93945.0,93944.0,0.00012381]
[1734990782477,0.08261041,93945.0,93944.0,0.00012381]
[1734990782661,0.02694125,93945.0,93944.0,0.00012381]
[1734990783097,0.02794125,93945.0,93944.0,0.00012381]
[1734990783519,0.02694125,93945.0,93944.0,0.00012381]
[1734990783932,0.02994125,93945.0,93944.0,0.00012381]
[1734990784362,0.03094125,93945.0,93944.0,0.00012381]
[1734990784589,0.13492757,93945.0,93944.0,0.00012381]
[1734990784843,0.00794125,93945.0,93944.0,0.00012381]
[1734990785104,0.004,93945.0,93944.0,0.11471502]
[1734990785307,0.004,93945.0,93944.0,0.10411013]
[1734990785555,0.09522631,93961.0,93960.0,0.212856]
[1734990786003,0.09522631,93964.0,93960.0,0.212856]
[1734990786227,0.09522631,93964.0,93953.0,0.212872]
[1734990786406,0.023,93963.0,93953.0,0.212872]
[1734990786793,0.023,93960.0,93959.0,0.212858]
[1734990786927,0.04931221,93960.0,93959.0,0.21244075]
[1734990787129,0.04931221,93960.0,93955.0,0.212867]
[1734990787567,0.023,93963.0,93960.0,0.212855]
[1734990787947,0.023,93963.0,93960.0,0.212856]
[1734990789187,0.235829,93972.0,93960.0,0.212856]
[1734990789537,0.023,93972.0,93964.0,0.212846]
[1734990789984,0.001,93963.0,93960.0,0.212856]
[1734990790185,0.002,93963.0,93960.0,0.425712]
[1734990790390,0.023,93962.0,93960.0,0.425712]
[1734990790801,0.001,93963.0,93960.0,0.425712]
[1734990791205,0.002,93963.0,93960.0,0.425712]
[1734990791359,0.023,93962.0,93951.0,0.02083127]
[1734990791560,0.212854,93961.0,93944.0,0.21301381]
[1734990791769,0.023,93962.0,93953.0,0.212871]
[1734990791770,0.023,93959.0,93953.0,0.212871]
[1734990791965,0.023,93962.0,93953.0,0.212871]
[1734990792169,0.001,93963.0,93953.0,0.212871]
[1734990792370,0.023,93965.0,93953.0,0.212871]
[1734990793399,0.023,93957.0,93944.0,0.00012381]
[1734990793612,0.023,93957.0,93944.0,2.381e-05]
[1734990793827,0.023,93951.0,93944.0,2.381e-05]
[1734990794269,0.023,93955.0,93945.0,0.21289]
[1734990795437,0.023,93963.0,93944.0,2.381e-05]
[1734990795644,0.002,93955.0,93954.0,0.212869]
[1734990796180,0.005,93955.0,93944.0,2.381e-05]
[1734990796325,0.023,93968.0,93945.0,0.10398632]
[1734990796543,0.003,93955.0,93945.0,0.10398632]
[1734990796773,0.003,93955.0,93954.0,0.21287]
[1734990797174,0.005,93955.0,93954.0,0.21287]
[1734990797590,0.002,93955.0,93954.0,0.21287]
[1734990798392,0.000171,93965.0,93954.0,0.42574]
[1734990798570,0.023,93963.0,93949.0,0.212881]
[1734990798771,0.023,93963.0,93957.0,0.212861]
[1734990799471,0.023,93963.0,93957.0,0.425724]
[1734990799673,0.001171,93965.0,93957.0,0.425724]
[1734990799872,0.023,93962.0,93957.0,0.425724]
[1734990801477,0.001,93963.0,93957.0,0.425724]
[1734990801676,0.001,93963.0,93946.0,0.02160885]
[1734990801677,0.001,93963.0,93961.0,0.212853]
[1734990801879,0.002,93962.0,93961.0,0.212853]
[1734990802090,0.025,93962.0,93961.0,0.212853]
[1734990802508,0.026,93962.0,93961.0,0.212853]
[1734990802707,0.024,93962.0,93961.0,0.212853]
[1734990802915,0.026,93962.0,93961.0,0.212853]
[1734990803980,0.025,93962.0,93961.0,0.212853]
[1734990804552,0.025,93962.0,93954.0,0.212868]
[1734990804553,0.000171,93965.0,93954.0,0.212868]
[1734990804758,0.000171,93965.0,93959.0,0.212858]
[1734990804986,0.000171,93965.0,93962.0,0.212851]
[1734990805416,0.000171,93965.0,93938.0,0.0485]
[1734990805625,0.212849,93963.0,93939.0,0.15]
[1734990805836,0.023,93958.0,93954.0,0.001]
[1734990806033,0.235854,93961.0,93954.0,0.001]
[1734990806242,0.235854,93961.0,93938.0,0.0832]
[1734990806492,0.235854,93961.0,93941.0,0.01060516]
[1734990806692,0.007,93963.0,93949.0,0.425759]
[1734990806871,0.023,93962.0,93949.0,0.425759]
[1734990807079,0.023,93955.0,93945.0,0.21289]
[1734990807279,0.023,93955.0,93944.0,0.00110931]
[1734990807479,0.023,93962.0,93944.0,0.00110931]
[1734990807718,0.007,93963.0,93944.0,0.00110931]
[1734990807719,0.023,93960.0,93944.0,0.00110931]
[1734990807886,0.023,93960.0,93944.0,0.10409563]
[1734990808143,0.000171,93965.0,93945.0,0.10398632]
[1734990808144,0.003,93962.0,93945.0,0.10398632]
[1734990808257,0.029,93961.0,93958.0,0.425719]
[1734990808466,0.023,93961.0,93958.0,0.425719]
[1734990808883,0.023,93959.0,93958.0,0.425719]
[1734990811158,0.001,93961.0,93958.0,0.425719]
[1734990811358,0.001,93961.0,93956.0,0.212865]
[1734990811732,0.0237183,93960.0,93956.0,0.212865]
[1734990811919,0.000171,93965.0,93956.0,0.212865]
[1734990812548,0.000171,93965.0,93959.0,0.212858]
[1734990812767,0.023,93963.0,93959.0,0.212858]
[1734990812997,0.000171,93965.0,93946.0,0.212888]
[1734990813197,0.000171,93965.0,93963.0,0.212849]
[1734990813536,0.003171,93965.0,93963.0,0.212849]
[1734990814256,0.00985683,93964.0,93959.0,0.212858]
[1734990814462,0.21285,93963.0,93949.0,0.212881]
[1734990814643,0.08745683,93964.0,93944.0,0.01079847]
[1734990815076,0.023,93963.0,93944.0,0.01079847]
[1734990815281,0.023,93961.0,93959.0,0.001]
[1734990815502,0.023,93961.0,93949.0,0.212879]
[1734990815686,0.023,93961.0,93945.0,0.212889]
[1734990815880,0.023,93961.0,93953.0,0.212871]
[1734990816111,0.023,93959.0,93953.0,0.212871]
[1734990817278,0.023,93959.0,93956.0,0.212864]
[1734990817459,0.001,93961.0,93944.0,0.01079847]
[1734990817661,0.09522631,93964.0,93945.0,0.10505064]
[1734990817862,0.05866904,93963.0,93962.0,0.212852]
[1734990818064,0.023,93963.0,93962.0,0.212852]
[1734990819464,0.000171,93965.0,93962.0,0.212852]
[1734990819612,0.000171,93965.0,93962.0,0.213852]
[1734990820023,0.000171,93965.0,93962.0,0.001]
[1734990820182,0.023,93963.0,93962.0,0.001]
[1734990820421,0.000171,93965.0,93962.0,0.001]
[1734990820627,0.212847,93964.0,93962.0,0.001]
[1734990820831,0.023,93963.0,93962.0,0.001]
[1734990821039,0.023,93961.0,93950.0,0.212879]
[1734990822051,0.212856,93960.0,93950.0,0.212879]
[1734990822247,0.023,93961.0,93950.0,0.212879]
[1734990822944,0.026,93961.0,93954.0,0.212868]
[1734990823521,0.028,93961.0,93954.0,0.212868]
[1734990823723,0.07594811,93961.0,93954.0,0.212868]
[1734990823895,0.07294811,93961.0,93954.0,0.212868]
[1734990824100,0.07094811,93961.0,93954.0,0.212868]
[1734990824321,0.07594811,93961.0,93954.0,0.212868]
[1734990824871,0.07894811,93961.0,93954.0,0.212868]
[1734990825462,0.023,93959.0,93954.0,0.212868]
[1734990825660,0.023,93959.0,93958.0,0.212861]
[1734990825869,0.023,93960.0,93954.0,0.212868]
[1734990826025,0.235856,93960.0,93949.0,8.55e-05]
[1734990826614,0.001,93959.0,93949.0,8.55e-05]
[1734990826872,0.05482713,93958.0,93949.0,0.2129655]
[1734990827050,0.023,93957.0,93949.0,0.2129655]
[1734990827696,0.023,93959.0,93954.0,0.212869]
[1734990828057,0.025,93959.0,93954.0,0.212869]
[1734990828459,0.025,93959.0,93950.0,0.212879]
[1734990828682,0.025,93957.0,93950.0,0.212879]
[1734990828885,0.024,93957.0,93950.0,0.212879]
[1734990829507,0.023,93957.0,93950.0,0.425758]
[1734990829711,0.023,93957.0,93954.0,0.21287]
[1734990830487,0.0791,93956.0,93949.0,8.55e-05]